[Event "The Elitserien 2024/25: round 1 - 3"]
[Site "Scandic Infra City, Kanalvagen 10, Upplands Vasby, Sweden"]
[Date "2024.10.04"]
[Round "1.37"]
[White "Arman, Deniz"]
[Black "Trost, Edvin"]
[Result "1-0"]
[TimeControl "90 minutes for 40 moves + 30 minutes for the rest of the game + 30 seconds per move from move one."]
[WhiteTitle "FM"]
[BlackTitle "IM"]
[WhiteFideId "6302106"]
[BlackFideId "1729519"]
[WhiteElo "2348"]
[BlackElo "2433"]

1. e4 {[%clk 01:30:53]} {[%emt 00:00:06]} c5 {[%clk 01:30:35]} {[%emt
00:00:19]} 2. Nf3 {[%clk 01:31:00]} {[%emt 00:00:29]} Nc6 {[%clk 01:30:34]}
{[%emt 00:00:32]} 3. d4 {[%clk 01:31:08]} {[%emt 00:00:22]} cxd4 {[%clk
01:28:18]} {[%emt 00:02:46]} 4. Nxd4 {[%clk 01:31:32]} {[%emt 00:00:06]} e5
{[%clk 01:28:41]} {[%emt 00:00:06]} 5. Nb5 {[%clk 01:31:33]} {[%emt 00:00:30]}
d6 {[%clk 01:29:05]} {[%emt 00:00:05]} 6. c4 {[%clk 01:29:24]} {[%emt
00:02:40]} g6 {[%clk 01:29:21]} {[%emt 00:00:14]} 7. h4 {[%clk 01:22:15]}
{[%emt 00:07:38]} a6 {[%clk 01:29:09]} {[%emt 00:00:42]} 8. N5c3 {[%clk
01:21:40]} {[%emt 00:01:05]} Nf6 {[%clk 01:29:28]} {[%emt 00:00:11]} 9. h5
{[%clk 00:58:51]} {[%emt 00:23:19]} Nxh5 {[%clk 01:29:26]} {[%emt 00:00:31]} 10.
Nd5 {[%clk 00:59:12]} {[%emt 00:00:10]} Be6 {[%clk 01:14:17]} {[%emt 00:15:38]}
11. Be3 {[%clk 00:44:30]} {[%emt 00:15:12]} Bxd5 {[%clk 01:10:22]} {[%emt
00:04:25]} 12. exd5 {[%clk 00:41:55]} {[%emt 00:03:06]} Nd4 {[%clk 00:58:29]}
{[%emt 00:12:22]} 13. Nc3 {[%clk 00:38:26]} {[%emt 00:03:59]} Bg7 {[%clk
00:56:23]} {[%emt 00:02:36]} 14. Qa4+ {[%clk 00:27:32]} {[%emt 00:11:25]} Kf8
{[%clk 00:42:15]} {[%emt 00:14:37]} 15. O-O-O {[%clk 00:22:52]} {[%emt
00:05:10]} Nf6 {[%clk 00:39:12]} {[%emt 00:03:33]} 16. Kb1 {[%clk 00:08:11]}
{[%emt 00:15:11]} h5 {[%clk 00:24:45]} {[%emt 00:14:56]} 17. Bd3 {[%clk
00:08:00]} {[%emt 00:00:42]} Ng4 {[%clk 00:15:01]} {[%emt 00:10:14]} 18. Rhf1
{[%clk 00:08:03]} {[%emt 00:00:27]} Bh6 {[%clk 00:12:44]} {[%emt 00:02:48]} 19.
Bxd4 {[%clk 00:06:41]} {[%emt 00:01:52]} exd4 {[%clk 00:13:12]} {[%emt
00:00:02]} 20. Ne4 {[%clk 00:06:35]} {[%emt 00:00:35]} Nf6 {[%clk 00:09:26]}
{[%emt 00:04:16]} 21. f4 {[%clk 00:01:47]} {[%emt 00:05:17]} Kg7 {[%clk
00:05:38]} {[%emt 00:04:19]} 22. f5 {[%clk 00:02:02]} {[%emt 00:00:15]} g5
{[%clk 00:04:06]} {[%emt 00:02:02]} 23. Rde1 {[%clk 00:01:38]} {[%emt
00:00:54]} g4 {[%clk 00:03:52]} {[%emt 00:00:45]} 24. Nxf6 {[%clk 00:01:38]}
{[%emt 00:00:30]} Qxf6 {[%clk 00:04:20]} {[%emt 00:00:02]} 25. Re6 {[%clk
00:00:39]} {[%emt 00:01:28]} fxe6 {[%clk 00:01:20]} {[%emt 00:03:30]} 26. fxe6
{[%clk 00:01:06]} {[%emt 00:00:04]} Bf4 {[%clk 00:01:48]} {[%emt 00:00:02]} 27.
g3 {[%clk 00:01:28]} {[%emt 00:00:08]} Qe7 {[%clk 00:01:57]} {[%emt 00:00:20]}
28. gxf4 {[%clk 00:01:43]} {[%emt 00:00:15]} Raf8 {[%clk 00:00:36]} {[%emt
00:01:52]} 29. f5 {[%clk 00:02:02]} {[%emt 00:00:11]} g3 {[%clk 00:00:32]}
{[%emt 00:00:34]} 30. Qd1 {[%clk 00:02:11]} {[%emt 00:00:20]} Rh6 {[%clk
00:00:32]} {[%emt 00:00:31]} 31. Qf3 {[%clk 00:02:33]} {[%emt 00:00:08]} h4
{[%clk 00:00:39]} {[%emt 00:00:23]} 32. c5 {[%clk 00:00:55]} {[%emt 00:02:07]}
dxc5 {[%emt 00:00:38]} 33. Qf4 {[%clk 00:00:39]} {[%emt 00:00:45]} g2 {[%clk
00:00:31]} {[%emt 00:00:32]} 34. Qg4+ {[%clk 00:00:37]} {[%emt 00:00:31]} Kf6
{[%clk 00:01:00]} {[%emt 00:00:02]} 35. Qxg2 {[%clk 00:01:00]} {[%emt
00:00:07]} h3 {[%clk 00:01:02]} {[%emt 00:00:28]} 36. Qh2 {[%clk 00:00:46]}
{[%emt 00:00:43]} Rd8 {[%clk 00:01:01]} {[%emt 00:00:32]} 37. Qf4 {[%clk
00:01:05]} {[%emt 00:00:11]} Qg7 {[%clk 00:00:37]} {[%emt 00:00:54]} 38. Re1
{[%clk 00:01:29]} {[%emt 00:00:06]} Rxd5 {[%clk 00:00:31]} {[%emt 00:00:36]} 39.
e7 {[%clk 00:01:48]} {[%emt 00:00:12]} Rh8 {[%clk 00:00:55]} {[%emt 00:00:06]}
40. e8=Q {[%clk 00:01:20]} {[%emt 00:00:57]} Rxe8 {[%clk 00:01:25]} 41. Rxe8
{[%clk 00:01:42]} {[%emt 00:00:08]} Qg1+ {[%clk 00:27:31]} {[%emt 00:04:23]} 42.
Kc2 {[%clk 00:27:14]} {[%emt 00:04:58]} Kf7 {[%clk 00:28:00]} {[%emt 00:00:01]}
43. Qb8 {[%clk 00:25:46]} {[%emt 00:01:58]} Qg2+ {[%clk 00:26:37]} {[%emt
00:01:53]} 44. Re2 {[%clk 00:24:33]} {[%emt 00:01:43]} c4 {[%clk 00:27:05]}
{[%emt 00:00:02]} 45. Qe8+ {[%clk 00:24:46]} {[%emt 00:00:17]} Kg7 {[%clk
00:26:58]} {[%emt 00:00:36]} 46. Rxg2+ {[%emt 00:00:18]} 1-0

[Event "The Elitserien 2024/25: round 1 - 3"]
[Site "Scandic Infra City, Kanalvagen 10, Upplands Vasby, Sweden"]
[Date "2024.10.04"]
[Round "1.38"]
[White "Sorensen, Hampus"]
[Black "Sevastianov, Andrii"]
[Result "1-0"]
[TimeControl "90 minutes for 40 moves + 30 minutes for the rest of the game + 30 seconds per move from move one."]
[WhiteTitle "IM"]
[WhiteFideId "8703884"]
[BlackFideId "1730240"]
[WhiteElo "2420"]
[BlackElo "2160"]

1. e4 {[%clk 01:30:52]} {[%emt 00:00:07]} e5 {[%clk 01:30:10]} {[%emt
00:00:51]} 2. Nf3 {[%clk 01:31:06]} {[%emt 00:00:16]} Nc6 {[%clk 01:30:31]}
{[%emt 00:00:08]} 3. Bc4 {[%clk 01:31:16]} {[%emt 00:00:22]} Bc5 {[%clk
01:27:51]} {[%emt 00:03:09]} 4. d3 {[%clk 01:31:22]} {[%emt 00:00:24]} Nf6
{[%clk 01:28:12]} {[%emt 00:00:08]} 5. c3 {[%clk 01:31:27]} {[%emt 00:00:26]}
O-O {[%clk 01:28:17]} {[%emt 00:00:24]} 6. O-O {[%clk 01:30:55]} {[%emt
00:01:03]} d6 {[%clk 01:24:33]} {[%emt 00:04:13]} 7. Bg5 {[%clk 01:29:33]}
{[%emt 00:01:53]} h6 {[%clk 01:24:52]} {[%emt 00:00:11]} 8. Bh4 {[%clk
01:29:48]} {[%emt 00:00:15]} a6 {[%clk 01:20:27]} {[%emt 00:04:54]} 9. a4
{[%clk 01:30:00]} {[%emt 00:00:19]} Ba7 {[%clk 01:20:38]} {[%emt 00:00:18]} 10.
Nbd2 {[%clk 01:27:46]} {[%emt 00:02:45]} Be6 {[%clk 01:15:13]} {[%emt
00:05:55]} 11. b4 {[%clk 01:24:34]} {[%emt 00:03:43]} Qe7 {[%clk 01:07:06]}
{[%emt 00:08:36]} 12. Re1 {[%clk 01:19:42]} {[%emt 00:05:23]} Nb8 {[%clk
01:00:21]} {[%emt 00:07:13]} 13. d4 {[%clk 01:15:59]} {[%emt 00:04:14]} Nbd7
{[%clk 00:57:32]} {[%emt 00:03:17]} 14. d5 {[%clk 01:08:46]} {[%emt 00:07:45]}
Bg4 {[%clk 00:57:45]} {[%emt 00:00:18]} 15. h3 {[%clk 01:09:04]} {[%emt
00:00:12]} Bxf3 {[%clk 00:56:20]} {[%emt 00:01:54]} 16. Qxf3 {[%clk 01:09:12]}
{[%emt 00:00:23]} Rfc8 {[%clk 00:43:55]} {[%emt 00:12:52]} 17. a5 {[%clk
00:54:09]} {[%emt 00:15:35]} g5 {[%clk 00:37:14]} {[%emt 00:07:11]} 18. Bg3
{[%clk 00:54:34]} {[%emt 00:00:06]} Nf8 {[%clk 00:37:39]} {[%emt 00:00:05]} 19.
Nf1 {[%clk 00:51:52]} {[%emt 00:03:11]} Ne8 {[%clk 00:33:05]} {[%emt 00:05:04]}
20. Ne3 {[%clk 00:48:18]} {[%emt 00:04:05]} Ng7 {[%clk 00:33:08]} {[%emt
00:00:25]} 21. Bh2 {[%clk 00:45:54]} {[%emt 00:02:58]} Nh7 {[%clk 00:28:11]}
{[%emt 00:05:25]} 22. Rac1 {[%clk 00:39:09]} {[%emt 00:07:15]} Rf8 {[%clk
00:26:35]} {[%emt 00:02:05]} 23. Bd3 {[%clk 00:37:38]} {[%emt 00:02:02]} Qf6
{[%clk 00:21:54]} {[%emt 00:05:10]} 24. Qe2 {[%clk 00:35:30]} {[%emt 00:02:39]}
Qe7 {[%clk 00:21:30]} {[%emt 00:00:55]} 25. g3 {[%clk 00:30:00]} {[%emt
00:06:00]} Bxe3 {[%clk 00:20:56]} {[%emt 00:01:03]} 26. Qxe3 {[%clk 00:30:00]}
{[%emt 00:00:30]} f5 {[%clk 00:21:19]} {[%emt 00:00:06]} 27. exf5 {[%clk
00:27:14]} {[%emt 00:03:17]} Nxf5 {[%clk 00:21:24]} {[%emt 00:00:25]} 28. Qe2
{[%clk 00:21:47]} {[%emt 00:05:58]} Qg7 {[%clk 00:20:09]} {[%emt 00:01:43]} 29.
Kh1 {[%clk 00:19:27]} {[%emt 00:02:51]} Kh8 {[%clk 00:19:10]} {[%emt 00:01:28]}
30. Qc2 {[%clk 00:15:39]} {[%emt 00:04:19]} Ne7 {[%clk 00:19:19]} {[%emt
00:00:21]} 31. c4 {[%clk 00:15:57]} {[%emt 00:00:13]} g4 {[%clk 00:14:28]}
{[%emt 00:05:20]} 32. Bxh7 {[%clk 00:12:14]} {[%emt 00:04:12]} Qxh7 {[%clk
00:14:50]} {[%emt 00:00:09]} 33. hxg4 {[%clk 00:12:38]} {[%emt 00:00:06]} Qxc2
{[%clk 00:15:09]} {[%emt 00:00:10]} 34. Rxc2 {[%clk 00:13:07]} {[%emt
00:00:01]} Rf3 {[%clk 00:15:19]} {[%emt 00:00:18]} 35. Rb1 {[%clk 00:09:53]}
{[%emt 00:03:46]} c6 {[%clk 00:13:29]} {[%emt 00:02:21]} 36. Rd1 {[%clk
00:06:15]} {[%emt 00:04:07]} Raf8 {[%clk 00:12:05]} {[%emt 00:01:53]} 37. Bg1
{[%clk 00:06:17]} {[%emt 00:00:29]} R8f6 {[%clk 00:10:25]} {[%emt 00:02:10]} 38.
b5 {[%clk 00:05:18]} {[%emt 00:01:30]} Ra3 {[%clk 00:07:44]} {[%emt 00:03:09]}
39. dxc6 {[%clk 00:05:04]} {[%emt 00:00:45]} bxc6 {[%clk 00:06:41]} {[%emt
00:01:33]} 40. b6 {[%clk 00:05:09]} {[%emt 00:00:26]} c5 {[%clk 00:02:19]}
{[%emt 00:04:52]} 41. Rcd2 {[%clk 00:22:47]} {[%emt 00:12:51]} Nc6 {[%clk
00:29:20]} {[%emt 00:03:28]} 42. b7 {[%clk 00:22:59]} {[%emt 00:00:18]} 1-0

[Event "The Elitserien 2024/25: round 1 - 3"]
[Site "Scandic Infra City, Kanalvagen 10, Upplands Vasby, Sweden"]
[Date "2024.10.04"]
[Round "1.39"]
[White "Lindberg, Bengt"]
[Black "Wiedenkeller, Michael"]
[Result "1/2-1/2"]
[TimeControl "90 minutes for 40 moves + 30 minutes for the rest of the game + 30 seconds per move from move one."]
[WhiteTitle "IM"]
[BlackTitle "IM"]
[WhiteFideId "1700359"]
[BlackFideId "1700146"]
[WhiteElo "2337"]
[BlackElo "2406"]

1. e4 {[%clk 01:30:51]} {[%emt 00:00:08]} e5 {[%clk 01:30:32]} {[%emt
00:00:29]} 2. Nf3 {[%clk 01:31:03]} {[%emt 00:00:16]} Nc6 {[%clk 01:30:55]}
{[%emt 00:00:09]} 3. Bb5 {[%clk 01:31:09]} {[%emt 00:00:24]} Nf6 {[%clk
01:31:00]} {[%emt 00:00:25]} 4. Nc3 {[%clk 01:31:10]} {[%emt 00:00:29]} Bb4
{[%clk 01:30:24]} {[%emt 00:01:05]} 5. O-O {[%clk 01:31:20]} {[%emt 00:00:21]}
O-O {[%clk 01:30:32]} {[%emt 00:00:21]} 6. d3 {[%clk 01:31:32]} {[%emt
00:00:18]} Bxc3 {[%clk 01:30:24]} {[%emt 00:00:40]} 7. bxc3 {[%clk 01:31:51]}
{[%emt 00:00:11]} d6 {[%clk 01:30:21]} {[%emt 00:00:32]} 8. Bg5 {[%clk
01:31:57]} {[%emt 00:00:24]} Bd7 {[%clk 01:27:27]} {[%emt 00:03:25]} 9. Rb1
{[%clk 01:29:44]} {[%emt 00:02:42]} h6 {[%clk 01:15:14]} {[%emt 00:12:44]} 10.
Bh4 {[%clk 01:28:36]} {[%emt 00:01:37]} Re8 {[%clk 01:03:45]} {[%emt 00:12:00]}
11. Qd2 {[%clk 01:19:02]} {[%emt 00:10:04]} a6 {[%clk 00:59:03]} {[%emt
00:05:13]} 12. Ba4 {[%clk 01:17:20]} {[%emt 00:02:11]} Rb8 {[%clk 00:57:06]}
{[%emt 00:02:28]} 13. h3 {[%clk 01:12:19]} {[%emt 00:05:29]} Ne7 {[%clk
00:43:45]} {[%emt 00:13:52]} 14. Bxd7 {[%clk 01:04:08]} {[%emt 00:08:41]} Nxd7
{[%clk 00:43:49]} {[%emt 00:00:26]} 15. Nh2 {[%clk 01:04:30]} {[%emt 00:00:08]}
g5 {[%clk 00:28:26]} {[%emt 00:15:54]} 16. Bg3 {[%clk 01:04:48]} {[%emt
00:00:11]} f5 {[%clk 00:28:33]} {[%emt 00:00:24]} 17. exf5 {[%clk 01:02:13]}
{[%emt 00:03:04]} Nxf5 {[%clk 00:28:57]} {[%emt 00:00:06]} 18. Qe2 {[%clk
00:59:34]} {[%emt 00:03:08]} Rf8 {[%clk 00:24:50]} {[%emt 00:04:39]} 19. Ng4
{[%clk 00:54:17]} {[%emt 00:05:46]} Kg7 {[%clk 00:22:56]} {[%emt 00:02:25]} 20.
Ne3 {[%clk 00:53:03]} {[%emt 00:01:43]} Qf6 {[%clk 00:20:45]} {[%emt 00:02:41]}
21. d4 {[%clk 00:49:51]} {[%emt 00:03:42]} Nxe3 {[%clk 00:16:28]} {[%emt
00:04:47]} 22. Qxe3 {[%clk 00:49:16]} {[%emt 00:01:05]} exd4 {[%clk 00:14:28]}
{[%emt 00:02:30]} 23. cxd4 {[%clk 00:49:39]} {[%emt 00:00:07]} Nb6 {[%clk
00:14:06]} {[%emt 00:00:51]} 24. Rbe1 {[%clk 00:34:03]} {[%emt 00:16:06]} Qf7
{[%clk 00:11:31]} {[%emt 00:03:06]} 25. h4 {[%clk 00:30:31]} {[%emt 00:04:01]}
Rbe8 {[%clk 00:10:18]} {[%emt 00:01:44]} 26. Qc3 {[%clk 00:21:22]} {[%emt
00:09:38]} Nd5 {[%clk 00:08:59]} {[%emt 00:01:50]} 27. Qb3 {[%clk 00:21:33]}
{[%emt 00:00:18]} b5 {[%clk 00:07:50]} {[%emt 00:01:40]} 28. Rxe8 {[%clk
00:18:06]} {[%emt 00:03:59]} Rxe8 {[%clk 00:08:12]} {[%emt 00:00:07]} 29. c4
{[%clk 00:14:26]} {[%emt 00:04:10]} Nf4 {[%clk 00:06:54]} {[%emt 00:01:47]} 30.
Bxf4 {[%clk 00:06:16]} {[%emt 00:08:40]} bxc4 {[%clk 00:06:29]} {[%emt
00:00:56]} 31. Qc3 {[%clk 00:06:41]} {[%emt 00:00:04]} gxf4 {[%clk 00:06:12]}
{[%emt 00:00:47]} 32. d5+ {[%clk 00:07:00]} {[%emt 00:00:11]} Re5 {[%clk
00:05:06]} {[%emt 00:01:36]} 33. Rd1 {[%clk 00:06:20]} {[%emt 00:01:10]} Qh5
{[%clk 00:04:10]} {[%emt 00:01:27]} 34. Re1 {[%clk 00:04:15]} {[%emt 00:02:34]}
Kf6 {[%clk 00:02:39]} {[%emt 00:02:02]} 35. Re4 {[%clk 00:02:31]} {[%emt
00:02:13]} Qd1+ {[%clk 00:01:29]} {[%emt 00:01:41]} 36. Kh2 {[%clk 00:02:54]}
{[%emt 00:00:06]} Qxd5 {[%clk 00:01:10]} {[%emt 00:00:51]} 37. Rxf4+ {[%clk
00:02:35]} {[%emt 00:00:48]} Ke7 {[%clk 00:01:08]} {[%emt 00:00:32]} 38. Rxc4
{[%clk 00:02:26]} {[%emt 00:00:40]} c5 {[%clk 00:01:25]} {[%emt 00:00:14]} 39.
Rg4 {[%clk 00:02:42]} {[%emt 00:00:12]} Rf5 {[%clk 00:00:42]} {[%emt 00:01:15]}
40. f4 {[%clk 00:00:35]} {[%emt 00:02:36]} Rf7 {[%clk 00:00:47]} {[%emt
00:00:25]} 41. Qb2 {[%clk 00:24:58]} {[%emt 00:06:06]} Qf5 {[%clk 00:23:11]}
{[%emt 00:08:06]} 42. Qb7+ {[%clk 00:21:51]} {[%emt 00:03:37]} Qd7 {[%clk
00:19:58]} {[%emt 00:03:43]} 43. Qf3 {[%clk 00:21:32]} {[%emt 00:00:47]} Qf5
{[%clk 00:17:48]} {[%emt 00:02:41]} 44. Kg3 {[%clk 00:21:39]} {[%emt 00:00:22]}
c4 {[%clk 00:13:17]} {[%emt 00:05:04]} 45. Qb7+ {[%clk 00:15:18]} {[%emt
00:06:48]} Ke6 {[%clk 00:12:26]} {[%emt 00:01:21]} 46. Qxa6 {[%clk 00:12:26]}
{[%emt 00:03:22]} Kd5 {[%clk 00:11:13]} {[%emt 00:01:44]} 47. Qb6 {[%clk
00:09:17]} {[%emt 00:03:38]} Qd3+ {[%clk 00:10:10]} {[%emt 00:01:34]} 48. Kh2
{[%clk 00:09:18]} {[%emt 00:00:28]} Qf5 {[%clk 00:10:29]} {[%emt 00:00:13]} 49.
Qb5+ {[%clk 00:05:04]} {[%emt 00:04:44]} Kd4 {[%clk 00:10:23]} {[%emt
00:00:35]} 50. Qb6+ {[%clk 00:04:39]} {[%emt 00:00:56]} Kd5 {[%clk 00:10:37]}
{[%emt 00:00:16]} 51. Qb5+ {[%clk 00:04:52]} {[%emt 00:00:16]} Kd4 {[%clk
00:10:51]} {[%emt 00:00:16]} 52. Qb6+ {[%clk 00:05:15]} {[%emt 00:00:08]}
1/2-1/2

[Event "The Elitserien 2024/25: round 1 - 3"]
[Site "Scandic Infra City, Kanalvagen 10, Upplands Vasby, Sweden"]
[Date "2024.10.04"]
[Round "1.40"]
[White "Barkhagen, Jonas"]
[Black "Lindborg, Patrik"]
[Result "1-0"]
[TimeControl "90 minutes for 40 moves + 30 minutes for the rest of the game + 30 seconds per move from move one."]
[WhiteTitle "IM"]
[WhiteFideId "1700855"]
[BlackFideId "1707507"]
[WhiteElo "2413"]
[BlackElo "2124"]

1. b3 {[%clk 01:30:56]} {[%emt 00:00:05]} c5 {[%clk 01:28:38]} {[%emt
00:02:22]} 2. Bb2 {[%clk 01:31:18]} {[%emt 00:00:07]} Nc6 {[%clk 01:29:02]}
{[%emt 00:00:07]} 3. Nf3 {[%clk 01:31:37]} {[%emt 00:00:11]} d5 {[%clk
01:27:17]} {[%emt 00:02:15]} 4. e3 {[%clk 01:31:59]} {[%emt 00:00:08]} a6
{[%clk 01:26:42]} {[%emt 00:01:05]} 5. c4 {[%clk 01:27:11]} {[%emt 00:05:19]}
d4 {[%clk 01:19:57]} {[%emt 00:07:15]} 6. exd4 {[%clk 01:26:28]} {[%emt
00:01:12]} cxd4 {[%clk 01:18:17]} {[%emt 00:02:10]} 7. b4 {[%clk 01:19:50]}
{[%emt 00:07:08]} Nxb4 {[%clk 01:12:08]} {[%emt 00:06:39]} 8. Nxd4 {[%clk
01:11:23]} {[%emt 00:08:56]} e5 {[%clk 01:11:04]} {[%emt 00:01:34]} 9. a3
{[%clk 01:11:43]} {[%emt 00:00:10]} exd4 {[%clk 01:09:33]} {[%emt 00:02:02]} 10.
axb4 {[%clk 01:12:04]} {[%emt 00:00:09]} Nf6 {[%clk 01:08:13]} {[%emt
00:01:50]} 11. Qb3 {[%clk 01:01:31]} {[%emt 00:11:02]} Bg4 {[%clk 00:56:05]}
{[%emt 00:12:37]} 12. Be2 {[%clk 00:49:17]} {[%emt 00:12:45]} Bd6 {[%clk
00:45:13]} {[%emt 00:11:23]} 13. Bxd4 {[%clk 00:40:55]} {[%emt 00:08:52]} O-O
{[%clk 00:44:37]} {[%emt 00:01:06]} 14. Nc3 {[%clk 00:33:41]} {[%emt 00:07:43]}
Re8 {[%clk 00:38:32]} {[%emt 00:06:35]} 15. Be3 {[%clk 00:30:27]} {[%emt
00:03:44]} Bxe2 {[%clk 00:37:13]} {[%emt 00:01:50]} 16. Nxe2 {[%clk 00:30:43]}
{[%emt 00:00:13]} Ng4 {[%clk 00:36:02]} {[%emt 00:01:42]} 17. h3 {[%clk
00:25:30]} {[%emt 00:05:43]} Ne5 {[%clk 00:26:28]} {[%emt 00:10:04]} 18. d4
{[%clk 00:20:56]} {[%emt 00:05:03]} Bxb4+ {[%clk 00:13:24]} {[%emt 00:13:35]}
19. Kf1 {[%clk 00:21:06]} {[%emt 00:00:19]} Nc6 {[%clk 00:13:46]} {[%emt
00:00:08]} 20. d5 {[%clk 00:13:49]} {[%emt 00:07:48]} Qf6 {[%clk 00:13:44]}
{[%emt 00:00:31]} 21. Ra4 {[%clk 00:07:42]} {[%emt 00:06:38]} b5 {[%clk
00:08:01]} {[%emt 00:06:13]} 22. cxb5 {[%clk 00:07:30]} {[%emt 00:00:41]} axb5
{[%clk 00:08:30]} {[%emt 00:00:02]} 23. Rxa8 {[%clk 00:07:46]} {[%emt
00:00:14]} Rxa8 {[%clk 00:08:57]} {[%emt 00:00:02]} 24. dxc6 {[%clk 00:07:55]}
{[%emt 00:00:22]} Ra1+ {[%clk 00:08:58]} {[%emt 00:00:29]} 25. Nc1 {[%clk
00:08:12]} {[%emt 00:00:12]} Bc5 {[%clk 00:08:39]} {[%emt 00:00:51]} 26. Ke2
{[%clk 00:03:49]} {[%emt 00:04:52]} Bxe3 {[%clk 00:07:08]} {[%emt 00:02:03]} 27.
Qxe3 {[%clk 00:04:09]} {[%emt 00:00:08]} Qxc6 {[%clk 00:04:54]} {[%emt
00:02:44]} 28. Rd1 {[%clk 00:04:31]} {[%emt 00:00:09]} h6 {[%clk 00:05:09]}
{[%emt 00:00:16]} 29. f3 {[%clk 00:02:24]} {[%emt 00:02:36]} Ra4 {[%clk
00:02:25]} {[%emt 00:03:14]} 30. Nd3 {[%clk 00:02:09]} {[%emt 00:00:44]} Qc4
{[%clk 00:02:15]} {[%emt 00:00:41]} 31. Rc1 {[%clk 00:01:09]} {[%emt 00:01:30]}
Qa2+ {[%clk 00:01:26]} {[%emt 00:01:18]} 32. Kf1 {[%clk 00:01:17]} {[%emt
00:00:21]} Rc4 {[%clk 00:00:45]} {[%emt 00:01:13]} 33. Rxc4 {[%clk 00:01:30]}
{[%emt 00:00:16]} bxc4 {[%clk 00:01:06]} {[%emt 00:00:09]} 34. Ne1 {[%clk
00:01:42]} {[%emt 00:00:18]} g6 {[%clk 00:00:41]} {[%emt 00:00:56]} 35. Qc3
{[%clk 00:01:12]} {[%emt 00:00:59]} Kh7 {[%clk 00:00:54]} {[%emt 00:00:19]} 36.
Qc2 {[%clk 00:01:21]} {[%emt 00:00:20]} Qa6 {[%clk 00:01:10]} {[%emt 00:00:14]}
37. Qc3 {[%clk 00:01:16]} {[%emt 00:00:33]} Qa2 {[%clk 00:01:25]} {[%emt
00:00:16]} 38. Nc2 {[%clk 00:01:01]} {[%emt 00:00:45]} Qb1+ {[%clk 00:01:30]}
{[%emt 00:00:26]} 39. Ke2 {[%clk 00:00:59]} {[%emt 00:00:28]} Qa2 {[%clk
00:01:06]} {[%emt 00:00:57]} 40. Kd2 {[%clk 00:00:42]} {[%emt 00:00:47]} h5
{[%clk 00:30:30]} {[%emt 00:01:07]} 1-0